Cogmind - Beta 15 @@@ ROGUE MODE // 2025.09.03 @ 20:11:11 Player: winnking222 Result: Destroyed by YI-UF0 with YI-UF0's Doublenader Performance ------------- Evolutions (0) 0 Regions Visited (2) 400 Robots Destroyed (33) 165 Value Destroyed (558) 558 Prototype IDs (0) 0 Alien Tech Used (0) 0 Bonus (0) 0 TOTAL SCORE: 1123 Bonus ------- None Cogmind --------- Core Integrity 0/250 Matter 279/300 Energy 74/100 System Corruption 0% Temperature Cool (0) Movement Core (450) Ox8 Location -10/Mines Parts ------- > --- POWER (1) -------- (None) > --- PROPULSION (2) --- (None) > --- UTILITY (2) ------ Large Storage Unit Seismic Detector > --- WEAPON (2) ------- Assault Rifle Assault Rifle > --- INVENTORY (15) --- Ion Engine Wheel High-capacity Storage Unit Large Matter Pod (150) Experimental Sensor Array Targeting Computer Assault Rifle Assault Rifle Assault Rifle Grenade Launcher Grenade Launcher Peak State ------------ > --- POWER ------------ Ion Engine > --- PROPULSION ------- Aluminum Leg Wheel > --- UTILITY ---------- Large Storage Unit Seismic Detector > --- WEAPON ----------- Assault Rifle Assault Rifle > --- INVENTORY -------- Ion Engine Wheel High-capacity Storage Unit Large Matter Pod Experimental Sensor Array Targeting Computer Assault Rifle Assault Rifle Assault Rifle Assault Rifle Assault Rifle Grenade Launcher Grenade Launcher [Rating: 9] Favorites ----------- Power Ion Engine Engine Ion Engine Propulsion Aluminum Leg Treads Light Treads Leg Aluminum Leg Wheel Wheel Utility Seismic Detector Device Seismic Detector Storage Large Storage Unit Weapon Assault Rifle Ballistic Gun Assault Rifle Launcher Grenade Launcher Build | -11 -10 -10 ------- Run | Yrd Mat Min Slots Evolved . | . . . Power . | . . . Propulsion . | . . . Utility . | . . . Weapon . | . . . Parts Attached 21 | 7 9 5 Power 2 | 1 1 . Engine 2 | 1 1 . Core . | . . . Reactor . | . . . Propulsion 5 | 2 2 1 Treads 2 | 2 . . Leg 2 | . 2 . Wheel 1 | . . 1 Hover . | . . . Flight . | . . . Utility 4 | 2 2 . Device 2 | 1 1 . Storage 2 | 1 1 . Processor . | . . . Hackware . | . . . Protection . | . . . Artifact . | . . . Weapon 10 | 2 4 4 Energy Gun . | . . . Energy Cannon . | . . . Ballistic Gun 8 | 2 3 3 Ballistic Cannon . | . . . Launcher 2 | . 1 1 Special Weapon . | . . . Impact Weapon . | . . . Slashing Weapon . | . . . Piercing Weapon . | . . . Special Melee Weapon . | . . . Unidentified Prototypes . | . . . Parts Lost 10 | . 4 6 Power 2 | . 1 1 Propulsion 4 | . 1 3 Utility 1 | . 1 . Weapon 3 | . 1 2 Highest Loss Streak 5 | . 4 5 To Critical Strikes . | . . . Average Backups 9 | 5 9 12 Power . | . . 1 Propulsion 2 | 3 2 1 Utility 2 | . 2 3 Weapon 3 | 1 3 7 Tool/Special . | . . . Unused Backups 12 | . 4 8 Power 1 | . . 1 Propulsion 3 | . 2 1 Utility 4 | . . 4 Weapon 4 | . 2 2 Tool/Special . | . . . Average Slot Usage (%) 96 | . 95 98 Engine 13 | . 13 13 Treads 8 | . 9 . Leg 17 | . 17 17 Wheel 1 | . . 10 Device 11 | . 11 14 Storage 14 | . 14 14 Ballistic Gun 27 | . 27 26 Peak Build Rating 9 | 7 8 9 Average Rating 7 | 5 7 8 On Entrance 5 | . 7 8 Naked Turns . | . . . Heaviest Build 31 | 12 30 31 Greatest Support 40 | 40 40 20 Greatest Overweight (x) 2 | . 1 2 Average Overweight (x) . | . . 1 Largest Inventory Capacity 15 | 8 15 15 Average Capacity 12 | 7 13 15 Most Carried 13 | 7 13 13 Average Carried 9 | 5 9 12 Final Capacity 15 | 8 15 15 Final Carried 13 | 6 13 11 Class Distribution -------------------- 64% | Mutant 35% | Scavenger-Mutant Dominant Class ---------------- Mutant | -10/Materials Mutant | -10/Mines Resources | -11 -10 -10 ----------- Run | Yrd Mat Min Matter Collected 1063 | 402 586 75 Remotely . | . . . Salvage Created 997 | 242 697 58 Parts 63 | 17 36 10 Haulers Intercepted 1 | . 1 . Recyclers Shooed 1 | . 1 . Parts Field Recycled . | . . . Retrieved Matter . | . . . Parts Self-Destructed . | . . . Prevented . | . . . Kills | -11 -10 -10 ------- Run | Yrd Mat Min Combat Hostiles Destroyed 21 | . 16 5 Guns 18 | . 16 2 AOE 3 | . . 3 Classes Destroyed 6 | 2 4 . Tunneler 7 | 7 . . Hauler 1 | . 1 . Recycler 3 | 1 2 . Watcher 1 | . 1 . Swarmer 11 | . 6 5 Grunt 10 | . 10 . Best Kill Streak 6 | 3 6 3 Combat Bots Only 4 | . 4 3 Max Kills in Single Turn 2 | 1 2 2 Gunslinging 1 | . 1 . Exploded 2 | . . 2 Melee . | . . . Uniques/NPCs Destroyed . | . . . Combat | -11 -10 -10 -------- Run | Yrd Mat Min Hostile Shots Fired 112 | . 80 32 Missed 31 | . 21 10 Hits 81 | . 59 22 Projectile 81 | . 59 22 AOE 14 | . . 14 Damage Taken 1214 | . 655 559 Core 252 | . 64 188 Absorbed by Shields . | . . . Core Remaining (%) 100 | 100 . . Volleys Fired 112 | 33 69 10 Largest 2 | 2 2 2 Hottest 50 | 40 40 50 Shots Fired 221 | 66 135 20 Gun 218 | 66 134 18 Cannon . | . . . Launcher 3 | . 1 2 Special . | . . . Kinetic 218 | 66 134 18 Thermal . | . . . Explosive 3 | . 1 2 Electromagnetic . | . . . Robot Hit Streak 14 | 14 11 5 Robot Miss Streak 5 | 4 5 2 Penetration Max . | . . . Secondary Targets 5 | . 5 . Max Gunslinging Chain 1 | . 1 . Shots Hit Robots 138 | 42 84 12 Core Hits 61 | 15 39 7 Critical Kills . | . . . Critical Parts Destroyed 2 | 1 1 . Critical Strikes 2 | 1 1 . Destroy 2 | 1 1 . Melee Attacks . | . . . Impact . | . . . Slashing . | . . . Piercing . | . . . Sneak Attacks . | . . . Combat Hostiles . | . . . Follow-up Attacks . | . . . Damage Inflicted 1728 | 474 962 292 Guns 1570 | 474 951 145 Cannons . | . . . Explosions 147 | . . 147 Melee . | . . . Ramming 11 | . 11 . Kinetic 1570 | 474 951 145 Thermal . | . . . Explosive 147 | . . 147 Electromagnetic . | . . . Impact . | . . . Slashing . | . . . Piercing . | . . . Highest Corruption . | . . . Average Corruption . | . . . Corruption Purged . | . . . Corruption Blocked . | . . . Overload Shots . | . . . Overflow Damage 3 | . . 3 Projectiles . | . . . Explosions 3 | . . 3 Melee . | . . . Knockbacks . | . . . Impact . | . . . Kinetic . | . . . Secondary . | . . . Self-Inflicted Damage . | . . . Shots . | . . . Rammed 1 | . 1 . Targets Rammed 1 | . 1 . Kicked . | . . . Crushed . | . . . Highest Temperature 9 | . 9 . Average Temperature 5 | . 5 . Received Heat Transfer 330 | . 330 . Siege Activations . | . . . Martial Activations . | . . . Shielding Activations . | . . . Robots Disrupted . | . . . Combat Hostiles . | . . . Robots Corrupted . | . . . Combat Hostiles . | . . . Parts Fried . | . . . Impact Corruptions . | . . . Robots Melted . | . . . Combat Hostiles . | . . . Parts Melted . | . . . Heat Transferred . | . . . Parts Sabotaged . | . . . Parts Stolen . | . . . Parts Stripped . | . . . Power Chain Reactions . | . . . Alert | -11 -10 -10 ------- Run | Yrd Mat Min Maximum Alert Level . | . . . Low Security (%) 100 | 100 100 100 Level 1 . | . . . Level 2 . | . . . Level 3 . | . . . Level 4 . | . . . Level 5 . | . . . High Security . | . . . Max Security . | . . . Peak Influence 177 | 5 177 78 Initial . | . . . Average 36 | 1 43 37 Influence Increases 642 | 40 439 163 Destroy 0b10 Robot/C 420 | . 320 100 Destroy 0b10 Robot/NC 60 | 40 20 . Destroy Leader 84 | . 64 20 Successful Hack 26 | . 26 . Disable Machine 15 | . . 15 Destroy Structure 22 | . 9 13 Lose Combat Pursuer 15 | . . 15 Influence Decreases 642 | 40 439 163 Time Decay 569 | 40 399 130 Lost Part 73 | . 40 33 Squads Dispatched 3 | . 3 . Investigation 1 | . 1 . Extermination . | . . . Reinforcement 2 | . 2 . Assault . | . . . Garrison . | . . . Intercept . | . . . Searches Triggered . | . . . Construction Impeded . | . . . Haulers Reinforced . | . . . Active Scanning Responses . | . . . Cargo Convoy Interrupts . | . . . Stealth | -11 -10 -10 --------- Run | Yrd Mat Min Distress Signals 4 | . 4 . Communications Jammed . | . . . Distress Signals . | . . . Times Spotted 32 | . 25 7 Peak Tracking Total 6 | . 6 3 Tactical Retreats 1 | . . 1 Traps | -11 -10 -10 ------- Run | Yrd Mat Min Traps Triggered 2 | . 2 . Indirectly . | . . . Trap Hack Attempts . | . . . Triggered . | . . . Disarmed . | . . . Reprogrammed . | . . . Reused . | . . . Traps Extracted . | . . . Installed . | . . . Triggered . | . . . Machines | -11 -10 -10 ---------- Run | Yrd Mat Min Machines Disabled 1 | . . 1 Max in Single Turn 1 | . . 1 Machines Repaired . | . . . Machines Dismantled . | . . . Machines Sabotaged . | . . . Overloaded Fab Kills . | . . . Hacking | -11 -10 -10 --------- Run | Yrd Mat Min Machines Accessed 6 | . 6 . Terminals 6 | . 6 . Fabricators . | . . . Repair Stations . | . . . Recycling Units . | . . . Scanalyzers . | . . . Garrison Access . | . . . Total Hacks 14 | . 14 . Successful 12 | . 12 . Failed 2 | . 2 . Catastrophic . | . . . Database Lockouts . | . . . Manual 12 | . 12 . Terminals 14 | . 14 . Fabricators . | . . . Repair Stations . | . . . Recycling Units . | . . . Scanalyzers . | . . . Garrison Access . | . . . Terminal Hacks 2 | . 2 . Alert Level 1 | . 1 . Locate Traps 1 | . 1 . Fabricator Hacks . | . . . Repair Station Hacks . | . . . Recycling Unit Hacks . | . . . Scanalyzer . | . . . Garrison Access Hacks . | . . . Unauthorized Hacks 10 | . 10 . Terminals 10 | . 10 . Assimilate 1 | . 1 . Botnet 3 | . 3 . Skim 6 | . 6 . Fabricators . | . . . Repair Stations . | . . . Recycling Units . | . . . Scanalyzers . | . . . Garrison Access . | . . . Data Cores Recovered . | . . . Used . | . . . Hacking Detections 2 | . 2 . Full Trace Events 1 | . 1 . Feedback Events . | . . . Feedback Blocked . | . . . Robot Schematics Acquired . | . . . Robots Built . | . . . Authchips . | . . . Time . | . . . Total Robot Build Rating . | . . . Part Schematics Acquired . | . . . Parts Built . | . . . Authchips . | . . . Time . | . . . Total Part Build Rating . | . . . Parts Repaired . | . . . Time . | . . . Parts Recycled . | . . . Recycled Matter . | . . . Retrieved Matter . | . . . Retrieved Components . | . . . Parts Scanalyzed . | . . . Part Schematics Acquired . | . . . Parts Damaged . | . . . Bothacking | -11 -10 -10 ------------ Run | Yrd Mat Min Used RIF Installer . | . . . Robots Hacked . | . . . Non-combat . | . . . Combat . | . . . Robot Hacks Applied . | . . . Relay Couplers Released . | . . . Fabnet Peak Effective % . | . . . Robots Rewired . | . . . Allies Hacked . | . . . Hacks Repelled . | . . . Allies | -11 -10 -10 -------- Run | Yrd Mat Min Total Allies . | . . . Largest Group . | . . . Highest-Rated Group . | . . . Highest-Rated Ally . | . . . Total Orders . | . . . Ally Attacks . | . . . Total Damage . | . . . Kills . | . . . Allies Corrupted . | . . . Allies Melted . | . . . Intel | -11 -10 -10 ------- Run | Yrd Mat Min Active Infowar (turns) 1767 | 12 1429 326 Seismic 1767 | 12 1429 326 Robot Analysis Total . | . . . Derelict Logs Recovered 2 | . . 2 Drone Launches . | . . . Drone Recoveries . | . . . Exploration | -11 -10 -10 ------------- Run | Yrd Mat Min Turns Passed 2514 | 365 1823 326 Spaces Moved 1058 | 167 663 228 Core 12 | 12 . . Treads 434 | 155 279 . Legs 423 | . 384 39 Wheels 189 | . . 189 Hover . | . . . Flight . | . . . Fastest Speed 50 | 50 160 110 Average Speed 162 | 152 179 123 Slowest Speed 240 | 160 240 190 Overloaded Moves . | . . . Propulsion Burnouts . | . . . Robots Hopped . | . . . Potential Cave-ins . | . . . Cave-ins Triggered . | . . . Exploration Rate (%) 54 | 7 94 62 Regions Visited 2 Branch Regions 1 Pre-discovered Areas 2 | . 1 1 Known Exits Taken . | . . . Unknown Exits Taken 2 | 1 1 . Scrap Searched 1 | . . 1 Spaces Dug . | . . . Terrain Destroyed 23 | . 8 15 Melee . | . . . Projectile . | . . . AOE 23 | . 8 15 Terrain Rammed . | . . . Walls Destroyed . | . . . Machines Disabled . | . . . Actions | -11 -10 -10 --------- Run | Yrd Mat Min Total 1643 | 217 1174 252 Wait 411 | 1 402 8 Move 1056 | 166 662 228 Hop . | . . . Pick Up 30 | 10 19 1 Fast Attach 3 | 3 . . Attach 14 | 4 7 3 Detach . | . . . Swap 7 | . 5 2 Drop 9 | . 9 . Fire 112 | 33 69 10 Melee . | . . . Ram . | . . . Kick . | . . . Crush 1 | . 1 . Escape Stasis . | . . . Rewire . | . . . Trap . | . . . Miscellaneous . | . . . Route ------- -11/Scrapyard -10/Materials (discovered 5 exits: *Mat x3 / [*Min] / Sub) -10/Mines (discovered 2 exits: *Mat x2) History --------- Turn | Location | Event 7 | -11/Scrapyard | Discovered new exit (range 14) 366 | -11/Scrapyard | Entered Materials 375 | -10/Materials | Build established: Mutant 466 | -10/Materials | Discovered new exit (range 8) 736 | -10/Materials | Discovered new exit (range 15) 849 | -10/Materials | Discovered new exit (range 15) 1002 | -10/Materials | Lost 4 parts (1p1n1u1w) 1562 | -10/Materials | Discovered new exit (range 16) 1655 | -10/Materials | Build established: Scavenger-Mutant 1696 | -10/Materials | Identified exit to Subcaves 1948 | -10/Materials | Learned Storage stockpile data 2043 | -10/Materials | Learned 2 Storage zone layouts 2189 | -10/Materials | Entered Mines 2190 | -10/Mines | Identified exit to Materials 2456 | -10/Mines | Found a damaged Exp. Sensor Array with a note attached 2459 | -10/Mines | Found Prototype Device 2508 | -10/Mines | Core integrity fell below 50% 2514 | -10/Mines | Core integrity fell below 20% 2515 | -10/Mines | Destroyed by YI-UF0 with YI-UF0's Doublenader Last Messages --------------- note attached: "Everyone keeps telling us we should avoid high-traffic areas because that's where patrols are more likely to show up, but that doesn't do us much good if we can't spot those areas until they're on top of us... With this we can! Deliver it to Megawrench for repairs then we'll never be afraid of an ambush while sneaking around Materials again, ha." 02457_ K-01 Serf collects debris. 02459_ Acquired Prototype Device. 02496_ K-01 Serf collects debris. 02496_ U-05 Engineer destroyed. 02498_ K-01 Serf destroyed. 02507_ The unstable cave ceiling collapses. 02509_ Assault Rifle destroyed. 02509_ Ion Engine destroyed. 02509_ Assault Rifle destroyed. 02510_ The unstable cave ceiling collapses. 02511_ Wheel destroyed. 02512_ The unstable cave ceiling collapses. 02513_ Aluminum Leg destroyed. 02514_ The unstable cave ceiling collapses. Map ----- +----------------------------------------------------+ | ????###????????# ####### ##?????????? | | ????# #???????# #?????######??????????? | | #???## #??????# #?????????????????????? | | ##??# ####### ####??????????????????? | | ##?# #??????????????????? | | #?## ###### ##?????????????????? | | #??## #???## ##????????????????? | | #???## ##??## ##???????????????? | | ####### ###???# #???????????????? | | #?????# #???????????????? | | ###### #?????## ##???????????????? | | #????# #??????## #????????????????? | | ###### #####???### #????????????????? | | ?# #?????# ###??????????????? | | ???# #?????# #??????????????? | | ????# """ < #?????### #??????????????? | | ##### """ #???????# #??????????????? | | !%# """ #???????# #??????????????? | | ###%# #???????# #??????????????? | | ??#]######=####???????# #??????????????? | | ??# ######%#??????????# #####??????????? | | ??# *= #?????????## # ##?????????? | | ??##########?????????# ####??????? | | ?????????????????????# #??????? | | ????????????????????## #??????? | | ????????????????????# @ #??????? | | ????????????????????# #??????? | | ???????????????###??# #??????? | | #?????????????# ### #??????? | | #????????????# ### #??????? | | #?????????### ## ##??????? | | #???###??## ## < = ##???????? | | #??## ### #?# ###???????? | | #??# ## g ?????????? | | #??# ##????????? | | #??## # #?????????? | | #???# ##?????????? | | #???## ##??????????? | | #????#### ##### #???????????? | | #???????## #???#####????????????? | | #???????## ##???????????????????? | | ######### ##??????????????????? | | #???????###????????? | | ########## ####??## ##???????? | | ?????????## #?## ##??????? | | ##????????# ### ##?????? | | ##???????# ### ## #?????? | | ######### #?# #? """ #?????? | | ## ##?# #?# """ #?????? | | #####??# ### """ #??????? | +----------------------------------------------------+ Best States ------------- Heat Dissipation 25 Energy Generation 10 Energy Capacity 250 Matter Stores 300 Matter Capacity 300 Sight Range 16 Terrain Scan Density 10 Evasion (%) 50 Recoil Reduction 2 Item Schematics ----------------- None Robot Schematics ------------------ None Fabricated ------------ Nothing Repaired ---------- Nothing Alien Tech Used ----------------- None Achievements -------------- None Challenges ------------ None Game ------ Seed AbsorptionAlertUnit Manual? 0 Play Time 00:15:22 Cumulative 166.1 hours Start 2025.09.03 @ 16:39:31 End 2025.09.03 @ 20:11:11 Sessions 2 Manual Loads 0 Difficulty Rogue Special Mode None Game No. 227 Rogue 227 Adventurer 0 Explorer 0 Win Type - Total 1 Types 1/0/0/0/0/0/0/0/0/0 Lore% 72 Gallery% 68 Achievement% 59 Wizard Run 0 Options --------- Layout 0 ASCII 0 Keyboard 0 Movement Mouse Keybinds 0 Fullscreen 1 Font 16/SmallcapsGlow Map View 75x55 Zoom Use 0% Tactical HUD 1 Map Filters NONE Filters NONE Steam 1 RUN: e549233d-0097-40ce-bcb6-098fe31b6003